Cogmind - Beta 14 @@@ ROGUE MODE // 2024.09.06 @ 19:55:18 Player: koksu120 Result: Destroyed by S-27 Virus with Autogun Performance ------------- Evolutions (3) 1500 Regions Visited (6) 1200 Robots Destroyed (49) 245 Value Destroyed (1279) 1279 Prototype IDs (0) 0 Alien Tech Used (0) 0 Bonus (0) 0 TOTAL SCORE: 4224 Bonus ------- None Cogmind --------- Core Integrity 0/700 Matter 24/300 Energy 99/100 System Corruption 5% Temperature Cool (12) Movement Core (100) Ox1 Location -7/Factory Parts ------- > --- POWER (2) -------- (None) > --- PROPULSION (3) --- (None) > --- UTILITY (5) ------ Improved Signal Interpreter Advanced Targeting Computer > --- WEAPON (3) ------- Flak Cannon > --- INVENTORY (5) ---- (None) Peak State ------------ > --- POWER ------------ Deuterium Engine Micro Nuclear Core > --- PROPULSION ------- Light Treads Light Treads Light Treads > --- UTILITY ---------- Compact Matter Pod Improved Signal Interpreter Advanced Targeting Computer Core Shielding Improved Shield Generator > --- WEAPON ----------- Minigun Flak Gun Flak Cannon > --- INVENTORY -------- Ion Engine Light Treads Plasma Cannon Flak Cannon Flak Cannon [Rating: 35] Favorites ----------- Power Light Nuclear Core Engine Deuterium Engine Power Core Light Nuclear Core Propulsion Light Treads Treads Light Treads Leg Aluminum Leg Wheel Compact Wheel Utility Advanced Targeting Computer Device Improved Shield Generator Storage Small Storage Unit Processor Advanced Targeting Computer Protection Core Shielding Weapon Flak Cannon Energy Gun Small Laser Energy Cannon Plasma Cannon Ballistic Gun Minigun Ballistic Cannon Flak Cannon Launcher Heavy Missile Launcher Slashing Weapon Blade Saw Build | -11 -10 -10 -9 -9 -8 -7 ------- Run | Yrd Mat Min Mat Min Mat Fac Slots Evolved 6 | . . . 2 . 2 2 Power 1 | . . . . . 1 . Propulsion 1 | . . . 1 . . . Utility 3 | . . . 1 . . 2 Weapon 1 | . . . . . 1 . Parts Attached 54 | 2 4 3 5 . 23 17 Power 11 | . . 1 . . 7 3 Engine 8 | . . 1 . . 6 1 Core 3 | . . . . . 1 2 Reactor . | . . . . . . . Propulsion 13 | 2 2 1 1 . 6 1 Treads 11 | . 2 1 1 . 6 1 Leg . | . . . . . . . Wheel 2 | 2 . . . . . . Hover . | . . . . . . . Flight . | . . . . . . . Utility 12 | . 2 1 1 . 4 4 Device 4 | . 2 . . . . 2 Storage 1 | . . . . . . 1 Processor 2 | . . 1 . . . 1 Hackware . | . . . . . . . Protection 5 | . . . 1 . 4 . Artifact . | . . . . . . . Weapon 18 | . . . 3 . 6 9 Energy Gun 2 | . . . 2 . . . Energy Cannon 1 | . . . . . . 1 Ballistic Gun 7 | . . . . . 3 4 Ballistic Cannon 6 | . . . 1 . 3 2 Launcher 1 | . . . . . . 1 Special Weapon . | . . . . . . . Impact Weapon . | . . . . . . . Slashing Weapon 1 | . . . . . . 1 Piercing Weapon . | . . . . . . . Special Melee Weapon . | . . . . . . . Unidentified Prototypes . | . . . . . . . Corrupted Parts 1 | . . . . . . 1 System Corruption 3 | . . . . . . 3 Parts Lost 24 | . . 1 . . 10 13 Power 4 | . . . . . 2 2 Propulsion 7 | . . . . . 4 3 Utility 7 | . . 1 . . 2 4 Weapon 6 | . . . . . 2 4 Highest Loss Streak 12 | . . 1 . . 4 12 To Critical Strikes . | . . . . . . . Average Slot Usage (%) 92 | . 97 99 100 100 84 95 Engine 10 | . 14 14 11 11 11 6 Core 4 | . . . . . 4 6 Treads 23 | . 26 28 33 33 19 21 Device 3 | . 12 2 . . . 5 Storage 6 | . 14 14 11 11 3 5 Processor 11 | . . 10 11 11 9 15 Protection 8 | . . . 11 11 13 8 Energy Gun 4 | . 14 14 11 11 1 . Ballistic Gun 8 | . 14 14 . . 7 10 Ballistic Cannon 9 | . . . 11 11 13 9 Peak Build Rating 35 | 6 10 14 18 18 30 35 Average Rating 23 | 6 9 12 17 18 23 31 On Entrance 14 | 6 6 9 14 18 18 27 Naked Turns . | . . . . . . . Heaviest Build 46 | 12 14 14 19 19 46 41 Greatest Support 68 | 32 52 46 68 68 68 60 Greatest Overweight (x) 4 | . 3 . . . 1 4 Average Overweight (x) . | . . . . . . . Largest Inventory Capacity 8 | 8 8 8 8 8 8 5 Average Capacity 6 | 8 8 8 8 8 6 5 Most Carried 8 | 6 5 8 7 6 8 5 Average Carried 4 | 5 3 6 5 6 4 4 Final Capacity 8 | 8 8 8 8 8 5 5 Final Carried 8 | 4 4 8 6 6 5 . Class Distribution -------------------- 44% | Tank 42% | Mutant 10% | Gunner Dominant Class ---------------- Mutant | -10/Materials Mutant | -10/Mines Mutant | -9/Materials Mutant | -9/Mines Tank | -8/Materials Tank | -7/Factory Resources | -11 -10 -10 -9 -9 -8 -7 ----------- Run | Yrd Mat Min Mat Min Mat Fac Matter Collected 1223 | 220 . 71 80 . 299 553 Remotely . | . . . . . . . Salvage Created 1165 | . . 110 166 . 485 404 Parts 104 | . 3 8 13 . 41 39 Haulers Intercepted 1 | . . . . . 1 . Recyclers Shooed 1 | . . . . . . 1 Parts Field Recycled . | . . . . . . . Retrieved Matter . | . . . . . . . Parts Self-Destructed . | . . . . . . . Prevented . | . . . . . . . Kills | -11 -10 -10 -9 -9 -8 -7 ------- Run | Yrd Mat Min Mat Min Mat Fac Combat Hostiles Destroyed 40 | . . 2 6 . 20 12 Melee 2 | . . . . . 2 . Guns 14 | . . 2 4 . 4 4 Cannons 24 | . . . 2 . 14 8 Classes Destroyed 11 | . 1 1 2 . 2 5 Worker 2 | . . . . . . 2 Builder 2 | . 1 . . . . 1 Hauler 1 | . . . . . 1 . Recycler 1 | . . . . . . 1 Watcher 3 | . . . . . . 3 Swarmer 21 | . . . 3 . 11 7 Cutter 2 | . . . . . . 2 Grunt 5 | . . . 2 . 3 . Sentry 8 | . . 2 1 . 4 1 Hunter 2 | . . . . . 2 . Programmer 2 | . . . . . . 2 Best Kill Streak 8 | . 1 2 3 . 8 6 Combat Bots Only 8 | . . 2 3 . 8 4 Max Kills in Single Turn 2 | . 1 1 2 . 2 2 Gunslinging . | . . . . . . . Exploded . | . . . . . . . Melee 1 | . . . . . 1 . Uniques/NPCs Destroyed . | . . . . . . . Combat | -11 -10 -10 -9 -9 -8 -7 -------- Run | Yrd Mat Min Mat Min Mat Fac Hostile Shots Fired 432 | . . 10 35 . 186 201 Missed 125 | . . 1 13 . 37 74 Damage Taken 4584 | . . 159 264 . 1955 2206 Core 990 | . . 12 51 . 222 705 Absorbed by Shields 203 | . . . . . . 203 Redirected to Shielding 101 | . . . 34 . 16 51 Core Remaining (%) 85 | 100 . 95 . 87 59 . Volleys Fired 120 | . 2 4 18 . 66 30 Largest 3 | . 2 2 2 . 3 3 Hottest 144 | . 60 60 80 . 132 144 Shots Fired 262 | . 4 8 36 . 125 89 Gun 142 | . 4 8 18 . 59 53 Cannon 117 | . . . 18 . 66 33 Launcher 3 | . . . . . . 3 Special . | . . . . . . . Kinetic 220 | . 2 4 18 . 121 75 Thermal 17 | . 2 4 . . . 11 Explosive 3 | . . . . . . 3 Electromagnetic 22 | . . . 18 . 4 . Robot Hit Streak 17 | . 1 3 9 . 17 8 Robot Miss Streak 11 | . 1 1 3 . 11 10 Penetration Max . | . . . . . . . Secondary Targets 1 | . . 1 . . . . Max Gunslinging Chain 1 | . . 1 . . . . Shots Hit Robots 183 | . 2 5 26 . 87 63 Core Hits 132 | . 1 4 7 . 59 61 Critical Kills . | . . . . . . . Critical Parts Destroyed . | . . . . . . . Critical Strikes 2 | . . . 1 . 1 . Blast 2 | . . . 1 . 1 . Melee Attacks 6 | . . . . . . 6 Impact . | . . . . . . . Slashing 6 | . . . . . . 6 Piercing . | . . . . . . . Sneak Attacks 2 | . . . . . . 2 Combat Hostiles . | . . . . . . . Follow-up Attacks . | . . . . . . . Damage Inflicted 3078 | . 23 48 515 . 1102 1390 Guns 1155 | . 17 48 225 . 337 528 Cannons 1552 | . . . 290 . 732 530 Explosions 222 | . . . . . . 222 Melee 98 | . . . . . . 98 Ramming 51 | . 6 . . . 33 12 Kinetic 2295 | . 17 24 290 . 1039 925 Thermal 157 | . . 24 . . . 133 Explosive 222 | . . . . . . 222 Electromagnetic 255 | . . . 225 . 30 . Impact . | . . . . . . . Slashing 98 | . . . . . . 98 Piercing . | . . . . . . . Highest Corruption 5 | . . . . . . 5 Average Corruption 3 | . . . . . . 3 Corruption Purged . | . . . . . . . Corruption Blocked . | . . . . . . . Effects 26 | . . . . . . 26 Message Errors 4 | . . . . . . 4 Matter Fused 8 | . . . . . . 8 Heat Flow Errors 4 | . . . . . . 4 Energy Discharges 4 | . . . . . . 4 Data Loss (minor) 4 | . . . . . . 4 Misfires 1 | . . . . . . 1 Weapon Failures 1 | . . . . . . 1 Overload Shots . | . . . . . . . Overflow Damage . | . . . . . . . Projectiles . | . . . . . . . Explosions . | . . . . . . . Melee . | . . . . . . . Knockbacks 40 | . . . 1 . 23 16 Impact . | . . . . . . . Kinetic 35 | . . . 1 . 18 16 Secondary 5 | . . . . . 5 . Self-Inflicted Damage . | . . . . . . . Shots . | . . . . . . . Rammed 19 | . . . . . 16 3 Targets Rammed 22 | . 1 . . . 18 3 Kicked . | . . . . . . . Crushed 3 | . 1 . . . 2 . Highest Temperature 430 | . 20 29 150 . 430 303 Average Temperature 103 | . 15 16 71 . 124 95 Received Heat Transfer 1005 | . . 36 111 . 630 228 Effects 8 | . . . . . 6 2 Shutdowns 2 | . . . . . 2 . Interference 4 | . . . . . 2 2 Damage (minor) 2 | . . . . . 2 . Siege Activations . | . . . . . . . Robots Corrupted . | . . . . . . . Combat Hostiles . | . . . . . . . Parts Fried . | . . . . . . . Impact Corruptions . | . . . . . . . Robots Melted . | . . . . . . . Combat Hostiles . | . . . . . . . Parts Melted . | . . . . . . . Heat Transferred 300 | . . 50 . . . 250 Parts Sabotaged . | . . . . . . . Parts Stolen . | . . . . . . . Parts Stripped . | . . . . . . . Power Chain Reactions . | . . . . . . . Alert | -11 -10 -10 -9 -9 -8 -7 ------- Run | Yrd Mat Min Mat Min Mat Fac Peak Influence 340 | . 20 55 117 45 340 192 Initial 122 | . . 7 21 45 17 122 Average 84 | . 6 7 44 45 132 89 Maximum Alert Level 1 | . . . . . 1 . Low Security (%) 87 | 100 100 100 100 100 63 100 Level 1 12 | . . . . . 36 . Level 2 . | . . . . . . . Level 3 . | . . . . . . . Level 4 . | . . . . . . . Level 5 . | . . . . . . . High Security . | . . . . . . . Max Security . | . . . . . . . Squads Dispatched 9 | . 2 . 1 . 1 5 Investigation 4 | . 1 . . . 1 2 Extermination 1 | . . . . . . 1 Reinforcement 4 | . 1 . 1 . . 2 Assault . | . . . . . . . Garrison . | . . . . . . . Intercept . | . . . . . . . Searches Triggered . | . . . . . . . Construction Impeded . | . . . . . . . Haulers Reinforced . | . . . . . . . Active Scanning Responses . | . . . . . . . Cargo Convoy Interrupts . | . . . . . . . Stealth | -11 -10 -10 -9 -9 -8 -7 --------- Run | Yrd Mat Min Mat Min Mat Fac Distress Signals 4 | . . . . . 3 1 Communications Jammed . | . . . . . . . Distress Signals . | . . . . . . . Times Spotted 72 | . 2 2 8 . 35 25 Peak Tracking Total 9 | . 2 2 3 . 9 6 Tactical Retreats 1 | . . . . . 1 . Traps | -11 -10 -10 -9 -9 -8 -7 ------- Run | Yrd Mat Min Mat Min Mat Fac Traps Triggered 5 | . 1 1 . . 1 2 Indirectly . | . . . . . . . Trap Hack Attempts . | . . . . . . . Triggered . | . . . . . . . Disarmed . | . . . . . . . Reprogrammed . | . . . . . . . Reused . | . . . . . . . Traps Extracted . | . . . . . . . Installed . | . . . . . . . Triggered . | . . . . . . . Machines | -11 -10 -10 -9 -9 -8 -7 ---------- Run | Yrd Mat Min Mat Min Mat Fac Machines Disabled 1 | . . . . . 1 . Max in Single Turn 1 | . . . . . 1 . Machines Repaired . | . . . . . . . Machines Dismantled . | . . . . . . . Machines Sabotaged . | . . . . . . . Overloaded Fab Kills . | . . . . . . . Hacking | -11 -10 -10 -9 -9 -8 -7 --------- Run | Yrd Mat Min Mat Min Mat Fac Machines Accessed 4 | . 1 1 2 . . . Terminals 3 | . 1 . 2 . . . Fabricators . | . . . . . . . Repair Stations . | . . . . . . . Recycling Units . | . . . . . . . Scanalyzers . | . . . . . . . Garrison Access . | . . . . . . . Total Hacks 5 | . 1 1 3 . . . Successful 3 | . . 1 2 . . . Failed 2 | . 1 . 1 . . . Catastrophic . | . . . . . . . Database Lockouts . | . . . . . . . Manual . | . . . . . . . Terminals 4 | . 1 . 3 . . . Fabricators . | . . . . . . . Repair Stations . | . . . . . . . Recycling Units . | . . . . . . . Scanalyzers . | . . . . . . . Garrison Access . | . . . . . . . Terminal Hacks 3 | . . 1 2 . . . Open Door 1 | . . 1 . . . . Branch Access Points 1 | . . . 1 . . . Unreport Threat 1 | . . . 1 . . . Fabricator Hacks . | . . . . . . . Repair Station Hacks . | . . . . . . . Recycling Unit Hacks . | . . . . . . . Scanalyzer . | . . . . . . . Garrison Access Hacks . | . . . . . . . Unauthorized Hacks . | . . . . . . . Terminals . | . . . . . . . Fabricators . | . . . . . . . Repair Stations . | . . . . . . . Recycling Units . | . . . . . . . Scanalyzers . | . . . . . . . Garrison Access . | . . . . . . . Data Cores Recovered . | . . . . . . . Used . | . . . . . . . Hacking Detections 2 | . 1 . 1 . . . Full Trace Events . | . . . . . . . Feedback Events . | . . . . . . . Feedback Blocked . | . . . . . . . Robot Schematics Acquired . | . . . . . . . Robots Built . | . . . . . . . Authchips . | . . . . . . . Time . | . . . . . . . Total Robot Build Rating . | . . . . . . . Part Schematics Acquired . | . . . . . . . Parts Built . | . . . . . . . Authchips . | . . . . . . . Time . | . . . . . . . Total Part Build Rating . | . . . . . . . Parts Repaired . | . . . . . . . Time . | . . . . . . . Parts Recycled . | . . . . . . . Recycled Matter . | . . . . . . . Retrieved Matter . | . . . . . . . Retrieved Components . | . . . . . . . Parts Scanalyzed . | . . . . . . . Part Schematics Acquired . | . . . . . . . Parts Damaged . | . . . . . . . Bothacking | -11 -10 -10 -9 -9 -8 -7 ------------ Run | Yrd Mat Min Mat Min Mat Fac Used RIF Installer . | . . . . . . . Robots Hacked . | . . . . . . . Non-combat . | . . . . . . . Combat . | . . . . . . . Robot Hacks Applied . | . . . . . . . Relay Couplers Released . | . . . . . . . Fabnet Peak Effective % . | . . . . . . . Robots Rewired . | . . . . . . . Allies Hacked . | . . . . . . . Hacks Repelled . | . . . . . . . Allies | -11 -10 -10 -9 -9 -8 -7 -------- Run | Yrd Mat Min Mat Min Mat Fac Total Allies . | . . . . . . . Largest Group . | . . . . . . . Highest-Rated Group . | . . . . . . . Highest-Rated Ally . | . . . . . . . Total Orders . | . . . . . . . Ally Attacks . | . . . . . . . Total Damage . | . . . . . . . Kills . | . . . . . . . Allies Corrupted . | . . . . . . . Allies Melted . | . . . . . . . Intel | -11 -10 -10 -9 -9 -8 -7 ------- Run | Yrd Mat Min Mat Min Mat Fac Robot Analysis Total . | . . . . . . . Derelict Logs Recovered 1 | . . 1 . . . . Drone Launches . | . . . . . . . Drone Recoveries . | . . . . . . . Exploration | -11 -10 -10 -9 -9 -8 -7 ------------- Run | Yrd Mat Min Mat Min Mat Fac Turns Passed 2961 | 9 222 260 262 83 986 1139 Spaces Moved 1492 | 5 128 154 118 54 417 616 Core 11 | . 2 . . . . 9 Treads 1470 | . 120 154 118 54 417 607 Legs 2 | 2 . . . . . . Wheels 9 | 3 6 . . . . . Hover . | . . . . . . . Flight . | . . . . . . . Fastest Speed 100 | 100 100 152 155 155 155 100 Average Speed 162 | 108 157 153 155 155 175 159 Slowest Speed 250 | 120 200 160 155 155 240 250 Overloaded Moves . | . . . . . . . Propulsion Burnouts . | . . . . . . . Robots Hopped . | . . . . . . . Cave-ins Triggered . | . . . . . . . Exploration Rate (%) 25 | 2 30 39 22 23 43 18 Regions Visited 6 Branch Regions 2 Pre-discovered Areas 1 | . . 1 . . . . Known Exits Taken 1 | . . . 1 . . . Unknown Exits Taken 5 | 1 1 1 . 1 1 . Scrap Searched 1 | . . 1 . . . . Spaces Dug . | . . . . . . . Terrain Destroyed 11 | . . . . . . 11 Melee . | . . . . . . . Projectile . | . . . . . . . AOE 11 | . . . . . . 11 Terrain Rammed . | . . . . . . . Walls Destroyed . | . . . . . . . Machines Disabled . | . . . . . . . Actions | -11 -10 -10 -9 -9 -8 -7 --------- Run | Yrd Mat Min Mat Min Mat Fac Total 1797 | 8 146 171 161 53 561 697 Wait 39 | . 1 . 17 . 10 11 Move 1486 | 4 127 153 117 53 416 616 Hop . | . . . . . . . Pick Up 40 | . 6 7 2 . 19 6 Fast Attach 5 | . . 1 . . 1 3 Attach 32 | . 4 . 3 . 17 8 Detach . | . . . . . . . Swap 17 | 2 . 2 2 . 5 6 Drop 30 | 2 5 4 2 . 9 8 Fire 120 | . 2 4 18 . 66 30 Melee 6 | . . . . . . 6 Ram . | . . . . . . . Kick . | . . . . . . . Crush 22 | . 1 . . . 18 3 Escape Stasis . | . . . . . . . Rewire . | . . . . . . . Trap . | . . . . . . . Miscellaneous . | . . . . . . . Route ------- -11/Scrapyard -10/Materials -10/Mines -9/Materials (discovered 2 exits: *Min x2) -9/Mines -8/Materials -7/Factory History --------- Turn | Location | Event 1 | -11/Scrapyard | Discovered new exit (range 3) 10 | -11/Scrapyard | Entered Materials 209 | -10/Materials | Discovered new exit (range 15) 232 | -10/Materials | Entered Mines 277 | -10/Mines | Met a Derelict who couldn't figure out how to use a Trap Extractor 325 | -10/Mines | Build established: Mutant 450 | -10/Mines | Discovered new exit (range 3) 492 | -10/Mines | Entered Materials 492 | -9/Materials | Evolved 2 slots: Propulsion x1, Utility x1 690 | -9/Materials | Identified exit to Mines 754 | -9/Materials | Entered Mines 816 | -9/Mines | Discovered new exit (range 12) 837 | -9/Mines | Entered Materials 837 | -8/Materials | Evolved 2 slots: Power x1, Weapon x1 1181 | -8/Materials | Lost 4 parts (1p2n1w) 1457 | -8/Materials | Destroyed 8 combat bots 1460 | -8/Materials | Lost 3 parts (1p2n) 1693 | -8/Materials | Discovered new exit (range 13) 1823 | -8/Materials | Entered Factory 1823 | -7/Factory | Evolved 2 slots: Utility x2 2080 | -7/Factory | Build established: Tank 2949 | -7/Factory | Core integrity fell below 50% 2962 | -7/Factory | Core integrity fell below 20% 2962 | -7/Factory | Destroyed by S-27 Virus with Autogun Last Messages --------------- 02946_ K-01 Serf collects debris. 02946_ U-05 Engineer lays Concrete. 02947_ K-01 Serf collects debris. 02948_ Lgt. Treads destroyed. 02948_ U-05 Engineer lays Concrete. 02948_ Penetrated by Slug. 02948_ Knocked back. 02949_ K-01 Serf collects debris. 02949_ U-05 Engineer lays Concrete. 02950_ Blade Saw destroyed. 02951_ K-01 Serf collects debris. 02954_ Flak Gun destroyed. 02955_ Penetrated by Slug. 02955_ Ion Engine destroyed. 02955_ Knocked back. 02956_ K-01 Serf collects debris. 02960_ U-05 Engineer lays Concrete. 02962_ K Map ----- +----------------------------------------------------+ | #????????????????????? | | ######+####### #????????????????????? | | #?# #????????????????????? | | #?# #????????????????????? | | #?# #????????????????????? | | ### % #????????????????????? | | + #???" ? ?????????????? | | ##### % % #?? " " "????????????? | | ######/#"" # ! #?" " " " ???????????? | | ## # #? #??????????? | | ## # % # #??????????? | | ## #=% %# #??????????? | | [ !## # + #??????????? | | ## #= # = #??????????? | | ############# #%!! # #??????????? | | ????????????###########!=k ###########??????????? | | ??????????#####T #### u* #??????????????????? | | ??????????#" u #########??????????? | | ???????????# H k ????????? | | ???????????# g ????????? | | ???????????# =k g ????????? | | ???????????# !%* ?????????? | | ???????????# ! ?????????? | | ???????????# s s ###+#####??????????? | | ???????????# #; #??????????????????? | | ???????????# #;;;; @ ##??????????????????? | | ?????????? ; #????????????????? | | ?????????? ; #????????????????? | | ??????????? ; ??????????????? | | ??????????? ; ""????????????? | | ???????????? ; ""????????????? | | ???????????? ; ; ""????????????? | | ???????????? ; ; ????????????? | | ?????????????####+;; ; """???????????? | | ????????????????? ;; ; ""????????????? | | ???????????????? ;; ; "?????????????? | | ??????????????? ;; ; ?????????????? | | ???????????????? ## ###??????????????? | | ???????????????????##############????????????????? | | ?????????????????????????????????????????????????? | | ?????????????????????????????????????????????????? | | ?????????????????????????????????????????????????? | | ?????????????????????????????????????????????????? | | ?????????????????????????????????????????????????? | | ?????????????????????????????????????????????????? | | ?????????????????????????????????????????????????? | | ?????????????????????????????????????????????????? | | ?????????????????????????????????????????????????? | | ?????????????????????????????????????????????????? | | ?????????????????????????????????????????????????? | +----------------------------------------------------+ Best States ------------- Heat Dissipation 34 Energy Generation 24 Energy Capacity 440 Matter Stores 300 Matter Capacity 450 Sight Range 16 Terrain Scan Density 10 ECM Strength 1 Additional Mass Support 6 Armor Coverage 450 Core Shielding 20 Propulsion Shielding 33 Evasion (%) 40 Targeting Accuracy 8 Recoil Reduction 3 Item Schematics ----------------- None Robot Schematics ------------------ None Fabricated ------------ Nothing Alien Tech Used ----------------- None Achievements -------------- None Challenges ------------ None Game ------ Seed ScatterSystemShredder Manual? 0 Play Time 00:22:20 Cumulative 15.7 hours Start 2024.09.06 @ 19:36:05 End 2024.09.06 @ 19:55:18 Sessions 1 Manual Loads 0 Difficulty Rogue Special Mode None Game No. 33 Rogue 33 Adventurer 0 Explorer 0 Win Type - Total 0 Types 0/0/0/0/0/0/0/0/0 Lore% 11 Gallery% 24 Achievement% 17 Wizard Run 0 Options --------- Layout 2 ASCII 0 Keyboard 0 Movement Mouse Keybinds 0 Fullscreen 1 Font 24/Smallcaps Map View 25x22 Zoom Use 100% Tactical HUD 1 Map Filters NONE Filters NONE Steam 1 RUN: c172af22-3dac-403b-acc2-024cb6c4ae67